bitfinex-derivatives/quotes_ETHF0:USTF0_20250308
["timestamp","ask_amount","ask_price","bid_price","bid_amount"]
[1741397354236,0.00700984,2136.8,2136.5,3.4184]
[1741397354439,0.93632,2136.6,2136.5,1.2894]
[1741397354940,4.1441,2136.7,2136.5,1.2894]
[1741397355841,3.2078,2136.7,2136.5,1.2894]
[1741397356238,3.2078,2136.7,2136.6,0.93632]
[1741397356438,3.2078,2136.7,2136.5,2.22575]
[1741397356638,3.2078,2136.7,2136.5,1.2894]
[1741397356834,0.00700984,2136.8,2136.6,0.93632]
[1741397357238,0.94324984,2136.8,2136.6,0.93632]
[1741397357641,0.00700984,2136.8,2136.7,0.93628]
[1741397357836,0.94326984,2136.8,2136.5,2.22575]
[1741397358036,0.00700984,2136.8,2136.5,1.2894]
[1741397358346,0.9363,2136.7,2136.5,1.2894]
[1741397358955,0.9363,2136.7,2136.5,2.22576]
[1741397359450,3.2078,2136.7,2136.5,1.2894]
[1741397359650,0.93632,2136.6,2136.5,1.2894]
[1741397360548,3.8706,2136.7,2136.2,3.8241]
[1741397360747,0.93646,2136.3,2136.2,3.8241]
[1741397360950,0.6085,2136.6,2136.0,3.4423]
[1741397360951,0.93654,2136.1,2136.0,3.4423]
[1741397361447,4.14434,2136.1,2136.0,0.6677]
[1741397361644,0.93663,2135.9,2135.8,0.00700984]
[1741397361840,1.59942,2136.0,2135.8,0.00700984]
[1741397362041,0.93662,2136.0,2135.8,0.94366984]
[1741397363342,0.93663,2135.9,2135.8,0.00700984]
[1741397363744,3.2078,2136.1,2135.8,0.00700984]
[1741397363948,0.93663,2136.0,2135.8,0.00700984]
[1741397364254,0.93663,2136.0,2135.8,0.94367984]
[1741397364655,0.93663,2136.0,2135.8,0.00700984]
[1741397364951,4.14437,2136.1,2135.8,0.94364984]
[1741397365144,0.93659,2136.0,2135.8,0.94364984]
[1741397365340,3.2078,2136.1,2135.8,0.00700984]
[1741397365341,0.93663,2135.9,2135.8,0.00700984]
[1741397365544,0.93661,2136.0,2135.8,0.94365984]
[1741397366851,0.93659,2136.0,2135.8,0.94367984]
[1741397367549,0.93663,2135.9,2135.8,0.00700984]
[1741397367956,0.93661,2136.0,2135.8,0.94365984]
[1741397368257,3.2078,2136.1,2135.8,0.94365984]
[1741397368455,0.93661,2136.0,2135.8,0.94367984]
[1741397370158,3.2078,2136.1,2135.8,0.00700984]
[1741397370347,0.93663,2135.9,2135.8,0.00700984]
[1741397379761,4.93663,2135.9,2135.8,0.00700984]
[1741397381064,0.93663,2135.9,2135.8,0.00700984]
[1741397381468,4.93663,2135.9,2135.8,0.00700984]
[1741397381666,0.93663,2135.9,2135.8,0.00700984]
[1741397382465,0.93663,2135.9,2135.8,0.00252698]
[1741397384669,1.2456,2136.0,2135.8,0.00252698]
[1741397384966,0.93661,2136.0,2135.8,0.93917698]
[1741397385669,0.93657,2136.1,2135.9,0.93663]
[1741397386169,4.4784,2136.5,2136.0,0.648]
[1741397386359,4.14419,2136.5,2136.3,0.93643]
[1741397386565,3.2078,2136.5,2136.4,1.58441]
[1741397386771,0.93635,2136.6,2136.4,1.58441]
[1741397386969,3.21480984,2136.8,2136.5,0.6375]
[1741397387172,3.21480984,2136.8,2136.7,0.93628]
[1741397387372,0.00700984,2136.8,2136.5,1.2974]
[1741397387572,0.00700984,2136.8,2136.6,0.93631]
[1741397387768,0.00700984,2136.8,2136.5,1.2974]
[1741397387971,0.00700984,2136.8,2136.7,0.93628]
[1741397388567,0.00700984,2136.8,2136.6,3.2078]
[1741397388775,0.94325984,2136.8,2136.6,3.2078]
[1741397389974,0.00700984,2136.8,2136.6,4.1441]
[1741397390175,0.94325984,2136.8,2136.6,3.2078]
[1741397391475,0.00700984,2136.8,2136.7,0.93628]
[1741397391873,0.93628,2136.7,2136.5,2.23374]
[1741397392070,0.94326984,2136.8,2136.5,2.23374]
[1741397392264,0.93628,2136.7,2136.5,1.2974]
[1741397392469,0.9363,2136.7,2136.5,1.2974]
[1741397392664,0.9363,2136.7,2136.5,2.23374]
[1741397392869,0.94326984,2136.8,2136.5,2.23374]
[1741397394181,0.00700984,2136.8,2136.5,2.23374]
[1741397394478,0.93628,2136.7,2136.5,2.23374]
[1741397394977,0.00700984,2136.8,2136.6,0.93629]
[1741397395169,0.94324984,2136.8,2136.6,0.93629]
[1741397395371,0.94325984,2136.8,2136.6,0.93629]
[1741397395566,0.00700984,2136.8,2136.5,1.2974]
[1741397395864,0.00700984,2136.8,2136.5,0.6375]
[1741397396075,0.00700984,2136.8,2136.5,1.57385]
[1741397396276,0.94326984,2136.8,2136.5,1.57385]
[1741397396466,0.94326984,2136.8,2136.6,0.93632]
[1741397396663,0.94327984,2136.8,2136.5,1.57385]
[1741397397464,0.94327984,2136.8,2136.6,0.93632]
[1741397397879,0.00700984,2136.8,2136.6,0.93632]
[1741397398176,0.00700984,2136.8,2136.7,0.93628]
[1741397398371,0.00700984,2136.8,2136.7,0.94628]
[1741397398573,4.14389,2137.2,2136.7,0.01]
[1741397398773,4.14389,2137.2,2137.0,0.93613]
[1741397399081,3.2078,2137.2,2136.8,2.7674]
[1741397399280,3.2078,2137.2,2137.1,0.9361]
[1741397401078,0.94300984,2137.4,2136.9,0.67580984]
[1741397401278,0.94300984,2137.4,2137.2,0.93605]
[1741397401474,0.00700984,2137.4,2137.3,0.93602]
[1741397401885,0.93602,2137.3,2137.2,2.127]
[1741397402184,0.9361,2137.1,2137.0,0.6634]
[1741397402383,0.93615,2137.0,2136.9,0.00700984]
[1741397402578,4.14395,2137.0,2136.9,0.00700984]
[1741397403483,0.93615,2137.0,2136.9,0.00700984]
[1741397403682,3.8417,2137.3,2136.9,0.00700984]
[1741397403884,4.14395,2137.0,2136.9,0.00700984]
[1741397408189,3.2078,2137.0,2136.9,0.00700984]
[1741397408384,0.94299984,2137.4,2137.2,0.93606]
[1741397408585,0.00700984,2137.4,2137.0,1.3117]
[1741397408793,0.00700984,2137.4,2137.2,0.93604]
[1741397408991,0.00700984,2137.4,2137.3,0.93602]
[1741397409296,0.00700984,2137.4,2137.0,3.4387]
[1741397409592,0.94300984,2137.4,2137.1,0.9361]
[1741397409987,0.00700984,2137.4,2137.0,4.37482]
[1741397410192,0.93608,2137.2,2137.0,4.37482]
[1741397410393,0.94300984,2137.4,2137.1,0.93607]
[1741397410594,0.94300984,2137.4,2137.1,0.9361]
[1741397410795,0.00700984,2137.4,2137.3,0.93602]
[1741397410990,0.00700984,2137.4,2137.3,0.94602]
[1741397411292,0.93604,2137.3,2137.0,7.58261]
[1741397411706,0.00700984,2137.4,2137.0,7.58261]
[1741397411707,0.00700984,2137.4,2137.0,7.92628544]
[1741397411918,0.9361,2137.1,2137.0,6.6465]
[1741397412213,0.9361,2137.1,2137.0,3.2078]
[1741397413109,3.8777,2137.3,2137.0,3.2078]
[1741397413311,0.9361,2137.1,2137.0,3.2078]
[1741397413813,3.8777,2137.3,2136.9,0.00700984]
[1741397414008,1.56455,2137.0,2136.9,0.00700984]
[1741397415223,4.77235,2137.0,2136.9,0.00700984]
[1741397415415,5.57240633,2137.0,2136.9,0.00700984]
[1741397415596,5.70154093,2137.0,2136.9,0.00700984]
[1741397415799,6.50154151,2137.0,2136.9,0.00700984]
[1741397415993,5.70154093,2137.0,2136.9,0.00700984]
[1741397416296,4.76539093,2137.0,2136.5,0.6557]
[1741397416503,0.93637,2136.5,2136.4,0.6451]
[1741397418426,0.93646,2136.3,2136.2,0.00700984]
[1741397419915,1.86606431,2136.3,2136.2,0.00700984]
[1741397420738,0.93646,2136.3,2136.2,0.00700984]
[1741397422034,0.93672,2135.7,2135.6,3.2078]
[1741397422336,0.93672,2135.8,2135.6,3.2078]
[1741397422533,3.2078,2136.2,2135.6,3.2078]
[1741397422835,0.93672,2135.7,2135.6,3.2078]
[1741397423223,0.93672,2135.7,2135.5,2.8092]
[1741397423224,0.93676,2135.6,2135.5,0.6822]
[1741397426233,0.93676,2135.6,2135.5,0.02]
[1741397426735,3.2078,2135.8,2134.7,3.2078]
[1741397426923,0.93726,2134.5,2134.2,0.95736]
[1741397427129,3.2078,2134.5,2134.3,0.93732]
[1741397427330,0.93732,2134.4,2134.2,0.02]
[1741397427525,0.93733,2134.3,2134.2,0.02]
[1741397428625,2.127,2134.3,2133.4,1.2428]
[1741397428929,4.14546,2133.6,2133.4,1.2428]
[1741397429124,0.93768,2133.5,2133.4,1.2428]
[1741397429327,0.93768,2133.5,2133.2,2.127]
[1741397429530,0.93768,2133.5,2133.2,2.687]
[1741397429732,4.14547,2133.6,2133.2,3.62481]
[1741397430128,3.2078,2133.6,2133.2,2.687]
[1741397430429,4.1454,2133.7,2133.2,2.687]
[1741397430635,3.2078,2133.7,2133.2,2.687]
[1741397430929,4.14542,2133.7,2133.4,0.93772]
[1741397431130,4.14542,2133.7,2133.3,0.93775]
[1741397431426,0.93765,2133.6,2133.3,0.95774]
[1741397431626,2.127,2133.9,2133.1,0.93784]
[1741397431627,3.2078,2133.4,2133.1,0.93784]
[1741397431818,3.2078,2133.4,2133.1,1.88784]
[1741397432016,3.2078,2133.4,2133.1,0.95]
[1741397432712,3.2078,2133.4,2133.2,0.93779]
[1741397432909,3.2078,2133.4,2132.8,4.031]
[1741397433212,3.2078,2133.4,2133.2,0.93781]
[1741397433405,3.2078,2133.4,2133.3,0.93777]
[1741397433708,3.2078,2133.4,2133.2,0.9378]
[1741397434113,0.0070279,2133.5,2133.2,0.01]
[1741397434413,0.0070279,2133.5,2133.4,0.93773]
[1741397435309,0.0070279,2133.5,2133.3,0.93775]
[1741397435509,0.0070279,2133.5,2133.3,1.00774]
[1741397435805,0.0070279,2133.5,2133.3,0.07]
[1741397436011,0.0070279,2133.5,2133.4,0.93773]
[1741397437005,0.0070279,2133.5,2133.2,2.128]
[1741397437306,0.0070279,2133.5,2133.4,0.93773]
[1741397438006,0.0070279,2133.5,2133.2,2.128]
[1741397438204,3.2078,2133.3,2133.2,0.16]
[1741397438411,3.2078,2133.3,2132.5,0.9381]
[1741397438604,3.2078,2132.8,2132.5,1.8781]
[1741397438800,3.2078,2132.8,2132.5,0.94]
[1741397439004,3.2078,2132.8,2132.4,1.2813]
[1741397439200,0.93812,2132.5,2132.4,0.64]
[1741397439413,3.2078,2132.5,2131.9,0.6681]
[1741397439611,3.2078,2132.1,2131.7,0.6132]
[1741397439806,3.2078,2132.1,2131.7,0.9532]
[1741397440012,3.2148279,2132.1,2131.7,0.6132]
[1741397440508,5.3748279,2132.1,2131.3,3.2078]
[1741397440710,3.2078,2131.4,2131.1,0.93871]
[1741397440911,3.2078,2131.4,2131.1,0.92]
[1741397441106,3.2078,2131.4,2131.1,1.85874]
[1741397441308,3.2078,2131.0,2129.6,3.2078]
[1741397441509,5.4348,2131.0,2129.9,3.2078]
[1741397441709,3.2078,2131.0,2130.2,3.2078]
[1741397441909,3.2078,2131.3,2130.5,3.2078]
[1741397442208,3.2078,2131.3,2130.6,2.244]
[1741397442413,3.2078,2130.7,2130.4,0.6708]
[1741397442609,4.14661,2131.0,2130.5,0.939]
[1741397442809,4.14661,2131.0,2130.4,0.7608]
[1741397442810,0.93888,2130.8,2130.4,0.6708]
[1741397443011,3.2078,2131.0,2130.3,2.249]
[1741397443319,0.939,2130.5,2130.4,0.0070279]
[1741397443513,3.2078,2130.7,2130.4,0.0070279]
[1741397444007,0.0070279,2130.8,2130.4,0.0970279]
[1741397444209,0.0070279,2130.8,2130.7,0.93892]
[1741397444410,3.2078,2131.3,2130.7,0.03]
[1741397444606,3.2078,2131.6,2131.0,0.93876]
[1741397444815,3.2078,2131.6,2130.8,5.4668]
[1741397445012,3.2078,2130.9,2130.4,3.2148279]
[1741397445217,3.2078,2130.9,2130.4,0.2570279]
[1741397445616,3.2148279,2130.9,2130.6,0.93892]
[1741397445817,4.1536579,2130.9,2130.4,0.0070279]
[1741397446022,3.2148279,2130.9,2130.4,3.3148279]
[1741397446221,0.0070279,2130.9,2130.8,0.93887]
[1741397446410,0.93837,2132.0,2130.9,0.93882]
[1741397446716,3.2078,2131.8,2131.2,3.2078]
[1741397446914,0.93856,2131.6,2131.1,4.1465]
[1741397447114,0.93856,2131.6,2131.2,3.21369]
[1741397447511,0.0070279,2131.6,2131.2,2.2820279]
[1741397447717,4.14636,2131.5,2131.2,2.2820279]
[1741397447918,3.2078,2131.5,2131.3,0.93863]
[1741397448125,3.2078,2131.5,2131.4,0.93861]
[1741397448322,0.0070279,2131.6,2131.4,0.93861]
[1741397448518,0.0070279,2131.6,2131.2,2.2820279]
[1741397448826,0.0070279,2131.6,2131.2,0.0070279]
[1741397448827,3.2078,2131.5,2131.2,0.0070279]
[1741397449126,0.93865,2131.3,2131.2,7.9e-06]
[1741397449321,2.277,2131.4,2131.2,7.9e-06]
[1741397449520,0.93865,2131.3,2131.2,7.9e-06]
[1741397449921,2.277,2131.4,2131.2,7.9e-06]
[1741397450116,4.14638,2131.5,2131.2,7.9e-06]
[1741397450422,3.2078,2131.5,2131.2,7.9e-06]
[1741397450629,0.0070279,2131.6,2131.3,0.93862]
[1741397450822,0.93859,2131.5,2131.2,7.9e-06]
[1741397451019,3.2078,2131.5,2130.6,3.2078]
[1741397451220,3.2078,2131.1,2130.2,5.5028]
[1741397451422,3.2078,2131.1,2130.2,0.22]
[1741397451423,0.93908,2130.4,2130.2,0.22]
[1741397451721,0.9391,2130.3,2130.0,0.6233]
[1741397451920,0.93908,2130.4,2130.1,0.6353]
[1741397452123,0.93912,2130.3,2130.1,0.03]
[1741397452326,0.93912,2130.3,2130.0,0.6233]
[1741397452327,3.2148279,2130.5,2130.0,0.0070279]
[1741397452528,0.9391,2130.3,2130.0,0.0870279]
[1741397452829,0.93907,2130.4,2130.0,0.0870279]
[1741397453023,0.93909,2130.4,2130.0,0.0870279]
[1741397453222,3.2148279,2130.5,2130.0,0.0870279]
[1741397453623,3.2148279,2130.5,2130.1,2.297]
[1741397453829,3.2148279,2130.5,2130.2,0.93914]
[1741397454025,3.2148279,2130.5,2130.2,0.04]
[1741397454223,3.2148279,2130.5,2130.0,0.0070279]
[1741397454224,0.93916,2130.2,2130.0,0.0070279]
[1741397454426,3.2078,2130.4,2130.0,0.0070279]
[1741397455219,0.93918,2130.1,2130.0,0.0070279]
[1741397455425,4.14698,2130.1,2130.0,0.0070279]
[1741397456024,3.2078,2130.1,2130.0,0.0070279]
[1741397456225,4.14698,2130.1,2130.0,0.0070279]
[1741397456424,3.2078,2130.1,2130.0,0.0070279]
[1741397456626,4.14698,2130.1,2130.0,0.0070279]
[1741397457226,3.2078,2130.1,2130.0,0.0070279]
[1741397457424,3.2078,2130.1,2129.6,3.2078]
[1741397457425,5.5228,2130.1,2129.3,0.93951]
[1741397457625,3.2078,2129.7,2129.3,1.32]
[1741397457827,4.1472,2129.7,2129.3,2.25951]
[1741397458026,0.93941,2129.6,2129.3,2.25951]
[1741397458629,0.93941,2129.6,2129.3,2.25953]
[1741397458829,3.2078,2129.7,2129.3,2.25951]
[1741397459020,0.93942,2129.6,2129.3,2.25951]
[1741397459431,0.93942,2129.6,2129.3,1.32]
[1741397459627,0.93942,2129.6,2129.3,2.25953]
[1741397459822,3.2078,2129.7,2129.3,1.32]
[1741397460028,3.2078,2130.0,2129.4,0.93946]
[1741397460223,3.2078,2130.0,2129.7,0.93934]
[1741397460430,4.14704,2130.0,2129.7,0.93934]
[1741397460631,3.2078,2130.0,2129.5,3.2078]
[1741397460930,3.2078,2130.0,2129.5,3.3078]
[1741397461134,4.14692,2130.3,2129.5,3.3078]
[1741397461339,0.93918,2130.1,2129.8,4.14709]
[1741397461531,0.93918,2130.1,2129.8,6.59909]
[1741397461733,2.3170279,2130.5,2129.8,6.59909]
[1741397461734,0.93916,2130.2,2129.9,0.93927]
[1741397462032,2.3170279,2130.5,2129.9,0.93927]
[1741397462033,3.2078,2130.3,2129.9,0.93927]
[1741397462235,4.14693,2130.3,2129.9,0.02]
[1741397462532,3.2078,2130.3,2129.9,0.02]
[1741397462936,0.0070279,2130.5,2130.1,3.2078]
[1741397463138,0.0070279,2130.5,2130.4,0.93905]
[1741397463327,0.939,2130.5,2130.4,0.21]
[1741397463532,3.2078,2130.6,2130.2,2.316]
[1741397464243,3.2078,2130.6,2130.3,0.93907]
[1741397464428,4.14676,2130.6,2130.3,0.93909]
[1741397464633,0.93909,2130.3,2130.2,0.0070279]
[1741397464832,3.2148279,2130.6,2130.2,0.0070279]
[1741397465042,4.1538179,2130.6,2130.2,0.9461379]
[1741397465338,4.1538179,2130.6,2130.2,1.0461379]
[1741397465640,4.1538079,2130.6,2130.2,1.0461279]
[1741397465840,4.1538079,2130.6,2130.3,0.93909]
[1741397466033,3.2148279,2130.6,2130.3,0.04]
[1741397466336,0.9460079,2130.6,2130.3,0.04]
[1741397466541,0.9460079,2130.6,2130.4,0.93903]
[1741397466542,0.0070279,2130.6,2130.4,0.93903]
[1741397466738,0.0070279,2130.6,2130.2,0.0070279]
[1741397466941,0.9459979,2130.6,2130.3,0.93906]
[1741397467135,0.0070279,2130.6,2130.4,0.93904]
[1741397467334,0.0070279,2130.6,2130.5,0.939]
[1741397467637,0.0070279,2130.6,2130.4,0.93904]
[1741397467836,0.0070279,2130.6,2130.5,0.939]
[1741397468340,2.34653,2131.4,2130.5,0.939]
[1741397468341,3.8724,2131.5,2130.5,4.49885198]
[1741397468537,3.2078,2131.5,2130.7,3.2078]
[1741397468847,3.2078,2130.8,2130.2,0.0070279]
[1741397469036,4.14678,2130.6,2130.2,0.9661379]
[1741397469237,3.2078,2130.6,2130.2,0.0270279]
[1741397469538,3.2148279,2130.6,2130.3,0.45968194]
[1741397469741,3.2078,2130.4,2129.9,0.01]
[1741397470042,5.55578,2130.1,2129.2,0.6132]
[1741397470238,4.14731,2129.4,2129.0,0.93965]
[1741397470438,0.93962,2129.1,2129.0,0.94]
[1741397470644,3.2078,2129.1,2128.4,0.93989]
[1741397470835,3.2078,2129.1,2128.5,0.46014482]
[1741397471035,3.2078,2129.1,2128.5,0.8170449]
[1741397471036,0.93974,2128.9,2128.5,0.8170449]
[1741397471341,0.0070449,2129.0,2128.9,0.93971]
[1741397471536,3.2078,2129.0,2128.7,2.359]
[1741397471843,3.2078,2129.0,2128.5,0.0070449]
[1741397472043,0.93984,2128.6,2128.5,0.0070449]
[1741397472336,2.375,2128.6,2127.6,3.2078]
[1741397472541,3.2078,2128.2,2127.6,0.22]
[1741397472841,3.2078,2127.8,2127.3,3.2078]
[1741397473030,3.2078,2127.8,2127.3,4.4978]
[1741397473031,4.148,2127.8,2127.3,4.4978]
[1741397473235,3.2078,2127.8,2127.3,4.4978]
[1741397473436,0.94025,2127.7,2127.3,3.2078]
[1741397473733,3.2148449,2127.8,2127.3,3.2148449]
[1741397473939,3.8507,2128.4,2127.7,3.2078]
[1741397474136,4.69692,2129.7,2128.0,3.2078]
[1741397474137,3.2078,2128.8,2128.0,3.2078]
[1741397474349,3.2078,2128.8,2128.1,2.405]
[1741397474548,3.2078,2128.8,2128.1,2.555]
[1741397474851,0.93994,2128.4,2127.7,3.2078]
[1741397475035,3.2078,2128.5,2127.7,3.3778]
[1741397475246,0.0070449,2128.3,2127.7,3.3778]
[1741397475437,0.0070449,2128.3,2128.1,0.94004]
[1741397476040,0.0070449,2128.3,2128.2,0.94002]
[1741397476235,0.0070449,2128.3,2128.2,1.15002]
[1741397476538,3.2078,2128.8,2128.2,0.21]
[1741397476738,3.2078,2129.1,2128.4,3.2078]
[1741397476947,3.2078,2129.1,2128.4,5.8488]
[1741397477243,3.8182,2129.4,2128.7,3.2078]
[1741397477440,3.8182,2129.4,2128.9,0.93968]
[1741397477649,0.9465849,2129.3,2128.8,0.9467749]
[1741397477838,0.9465849,2129.3,2128.8,0.9567749]
[1741397478038,0.0070449,2129.3,2128.9,0.93967]
[1741397478249,0.9466049,2129.3,2128.8,0.9467749]
[1741397478444,0.9466049,2129.3,2128.8,0.9567749]
[1741397478842,4.14751,2128.9,2128.8,0.0070449]
[1741397479050,5.6298,2128.9,2128.1,0.608]
[1741397479349,0.93991,2128.5,2128.1,0.788]
[1741397479556,4.14766,2128.6,2128.1,1.72806]
[1741397479846,4.14766,2128.6,2128.3,0.93996]
[1741397479847,3.2078,2128.6,2128.3,0.93996]
[1741397480042,3.2078,2128.6,2128.4,0.93991]
[1741397480245,3.2078,2128.6,2128.3,3.2078]
[1741397480449,3.2078,2128.6,2128.1,0.0070449]
[1741397480652,0.93999,2128.3,2128.1,0.0070449]
[1741397480956,3.2078,2128.6,2128.1,0.0070449]
[1741397481450,0.93991,2128.5,2128.1,0.0070449]
[1741397481749,0.93995,2128.4,2128.1,0.0070449]
[1741397482047,0.93999,2128.3,2128.1,0.0070449]
[1741397482250,3.2078,2128.6,2128.1,0.0070449]
[1741397482449,0.94001,2128.3,2128.1,0.0070449]
[1741397482644,3.2078,2128.6,2128.1,0.0070449]
[1741397482851,4.14782,2128.2,2128.1,0.0070449]
[1741397483148,3.2078,2129.2,2128.2,2.35005]
[1741397483347,3.2078,2129.2,2128.5,3.2078]
[1741397483547,3.2078,2129.2,2128.5,5.6708]
[1741397483841,2.453,2129.6,2128.3,1.2859]
[1741397483842,3.2078,2129.1,2128.4,0.93991]
[1741397484046,0.93969,2129.0,2128.5,0.93989]
[1741397484242,3.2078,2129.1,2128.3,1.2859]
[1741397484447,3.2078,2128.8,2128.4,0.93992]
[1741397484647,3.2078,2128.8,2128.2,3.2078]
[1741397484848,0.93968,2129.0,2128.2,3.2778]
[1741397485051,7.2302,2129.2,2128.5,3.2078]
[1741397485253,3.2078,2129.2,2129.1,0.93962]
[1741397485543,1.55358,2129.5,2128.8,3.2078]
[1741397485544,0.6141,2129.5,2128.8,3.2078]
[1741397485746,0.6141,2129.5,2129.0,0.93964]
[1741397485947,0.9395,2129.4,2129.1,0.93962]
[1741397486150,1.55356,2129.5,2129.1,0.93962]
[1741397486345,3.8219,2129.5,2129.2,0.93958]
[1741397486745,3.2078,2129.8,2129.2,0.93958]
[1741397486944,3.2078,2129.8,2129.5,0.93944]
[1741397487249,0.93936,2129.7,2129.1,3.2078]
[1741397487441,4.14714,2129.8,2129.4,0.93948]
[1741397487953,4.1541849,2129.8,2129.4,0.9465249]
[1741397488157,3.2148449,2129.8,2129.4,0.0070449]
[1741397488350,3.2148449,2129.8,2129.6,0.93938]
[1741397488549,3.2148449,2129.8,2129.4,3.2148449]
[1741397488550,0.0070449,2129.8,2129.7,0.93936]
[1741397488744,0.0070449,2129.8,2129.4,0.0070449]
[1741397488745,3.2148449,2129.8,2129.4,0.0070449]
[1741397489046,4.14725,2129.5,2129.4,0.0070449]
[1741397489249,3.2078,2129.5,2128.8,3.2078]
[1741397489451,3.2078,2129.5,2128.8,3.3278]
[1741397489656,4.14725,2129.5,2129.1,0.93958]
[1741397489952,3.2078,2129.5,2128.8,3.2078]
[1741397490146,0.6523,2129.7,2129.1,3.2078]
[1741397490353,0.0070449,2129.8,2129.7,0.93936]
[1741397490748,3.8449,2130.3,2129.7,4.14716]
[1741397491047,3.2078,2130.7,2130.1,0.93915]
[1741397491251,3.2078,2130.7,2130.0,3.2078]
[1741397491252,0.93903,2130.5,2130.0,3.2078]
[1741397491452,4.14674,2130.7,2130.0,3.2378]
[1741397491653,0.93894,2130.7,2130.3,3.2078]
[1741397491951,4.14677,2130.6,2130.3,3.2148449]
[1741397492152,0.0070449,2130.7,2130.3,4.1539149]
[1741397492350,3.2078,2130.6,2130.3,3.2148449]
[1741397492651,0.93902,2130.5,2130.3,0.0070449]
[1741397492857,0.0070449,2130.7,2130.4,0.93903]
[1741397493150,0.0070449,2130.7,2130.3,0.0070449]
[1741397493354,0.0070449,2130.7,2130.6,0.93896]
[1741397493548,0.0070449,2130.7,2130.6,0.95896]
[1741397493853,3.8449,2131.5,2130.6,0.95896]
[1741397493854,3.8449,2131.5,2130.6,6.36741]
[1741397494055,0.93861,2131.4,2131.0,0.93877]
[1741397494356,0.93861,2131.4,2131.1,0.93874]
[1741397494557,3.2078,2131.5,2130.9,3.2078]
[1741397494857,0.93868,2131.3,2130.9,4.14661]
[1741397495055,0.9456749,2131.4,2131.0,0.93876]
[1741397495259,0.0070449,2131.4,2130.9,3.2078]
[1741397495450,0.9456949,2131.4,2130.9,3.2078]
[1741397495656,0.0070449,2131.4,2130.9,3.2078]
[1741397495856,0.93884,2130.9,2130.6,3.2078]
[1741397496050,0.93881,2131.0,2130.6,3.3078]
[1741397496252,3.1626,2131.3,2130.6,3.3078]
[1741397496253,3.2078,2130.9,2130.6,0.1]
[1741397496555,3.2078,2130.9,2130.3,0.0070449]
[1741397496556,2.499,2130.8,2130.3,0.0070449]
[1741397496743,0.93901,2130.5,2130.3,0.0070449]
[1741397496948,2.499,2130.8,2130.3,0.0070449]
[1741397497156,4.14685,2130.4,2130.3,0.0070449]
[1741397497550,0.6338,2130.7,2130.3,0.0070449]
[1741397497751,3.2078,2130.6,2130.4,0.93905]
[1741397497951,2.499,2130.8,2130.3,0.9461149]
[1741397498152,0.93905,2130.4,2130.3,0.0070449]
[1741397498352,0.93935,2129.8,2129.5,0.6474]
[1741397498657,4.14695,2130.2,2129.9,0.93927]
[1741397498954,3.2078,2130.2,2129.5,3.8552]
[1741397499150,0.6551,2130.4,2129.8,3.2078]
[1741397499356,0.6551,2130.4,2129.5,3.8552]
[1741397499357,3.2078,2130.2,2129.5,3.8552]
[1741397499553,0.93926,2130.0,2129.9,0.0070449]
[1741397500052,0.0070449,2130.3,2130.1,0.93918]
[1741397500255,0.9461549,2130.3,2129.9,0.0070449]
[1741397500461,0.0070449,2130.3,2129.9,0.0070449]
[1741397500655,0.0070449,2130.3,2130.2,0.93914]
[1741397500860,0.0070449,2130.3,2130.1,1.79019768]
[1741397501062,0.0070449,2130.3,2130.2,0.93914]
[1741397501257,0.0070449,2130.3,2130.2,1.60044]
[1741397501562,0.0070449,2130.3,2129.9,0.9462849]
[1741397501563,0.9461449,2130.3,2129.9,0.9462849]
[1741397501959,0.0070449,2130.3,2130.0,0.93921]
[1741397502656,0.0070449,2130.3,2130.2,0.93914]
[1741397502860,0.0070449,2130.3,2130.2,0.97914]
[1741397503358,0.0070449,2130.3,2130.2,0.93914]
[1741397505050,0.0070449,2130.3,2130.1,3.2078]
[1741397505461,0.0070449,2130.3,2130.1,4.14696]
[1741397505659,0.0070449,2130.3,2129.9,0.0070449]
[1741397505855,0.93923,2130.0,2129.9,0.0070449]
[1741397506258,0.9392,2130.1,2129.9,0.0070449]
[1741397506556,3.2078,2130.1,2129.9,0.0070449]
[1741397506760,0.0070449,2130.3,2129.9,0.0070449]
[1741397507063,0.93915,2130.2,2129.9,0.0070449]
[1741397507256,0.0070449,2130.3,2129.9,0.0070449]
[1741397507657,0.9461549,2130.3,2129.9,0.9462849]
[1741397507864,0.0070449,2130.3,2129.9,0.0070449]
[1741397508161,0.0070449,2130.3,2130.0,3.2078]
[1741397508464,3.2148449,2130.3,2129.9,0.0070449]
[1741397508666,0.93923,2130.0,2129.9,0.0070449]
[1741397509357,4.14703,2130.0,2129.9,0.0070449]
[1741397510463,0.6693449,2130.3,2129.9,0.0070449]
[1741397511057,4.14703,2130.0,2129.9,0.0070449]
[1741397511258,0.93939,2129.7,2129.3,0.6172]
[1741397511459,0.93934,2129.8,2129.4,0.93946]
[1741397511657,0.93945,2129.5,2129.3,0.6172]
[1741397511858,4.14718,2129.7,2129.4,0.93946]
[1741397512466,3.2078,2129.7,2129.4,0.93949]
[1741397512665,3.2078,2129.7,2129.3,0.6242449]
[1741397512666,6.65905,2130.0,2129.3,0.6242449]
[1741397512868,6.65905,2130.0,2129.7,0.93931]
[1741397513068,0.93928,2129.9,2129.6,0.93938]
[1741397513254,6.65904,2130.0,2129.7,0.93935]
[1741397513462,0.93929,2129.9,2129.6,0.93938]
[1741397513758,0.93937,2129.7,2129.4,0.93946]
[1741397513960,5.7198,2130.0,2129.3,0.6242449]
[1741397514154,0.93949,2129.4,2129.3,0.0070449]
[1741397514770,4.14729,2129.4,2129.3,0.0070449]
[1741397515263,4.14729,2129.4,2128.3,2.89488]
[1741397515264,0.93984,2128.6,2128.3,0.93996]
[1741397515461,4.6969,2129.7,2128.3,0.1]
[1741397515462,0.93992,2128.5,2128.3,0.1]
[1741397515772,3.2078,2128.6,2128.1,0.94004]
[1741397516067,3.2078,2128.6,2128.1,1.04004]